Cogmind - Beta 13 X2 @@@ ROGUE MODE // 2024.02.12 @ 02:20:02 // Winter2022/Polymind Player: H3-RMN Result: Destroyed by H-88 Terminator with KE Penetrator Performance ------------- Evolutions (9) 4500 Regions Visited (18) 3600 Robots Destroyed (4) 20 Value Destroyed (74) 74 Prototype IDs (24) 480 Alien Tech Used (0) 0 Bonus (9143) 9143 TOTAL SCORE: 17617 Bonus ------- Polymind Skill 6836 Follower Combat Kills 107 Entered Garrisons 400 Used RIF Installer 500 Entered DSFs 1000 Aligned with FarCom 300 Cogmind --------- Core Integrity 0/1600 Matter 0/0 Energy 187/190 System Corruption 4% Temperature Cool (9) Movement Rolling (100) Location -1/Access Parts ------- > --- POWER (1) -------- Improved Ion Engine > --- PROPULSION (4) --- Compact Wheel Compact Wheel Compact Wheel > --- UTILITY (3) ------ Medium Storage Unit High-powered Tractor Beam Field Recycling Unit > --- WEAPON (0) ------- (None) > --- INVENTORY (6) ---- (None) Peak State ------------ > --- POWER ------------ Micro Fission Core > --- PROPULSION ------- Advanced Surge Thruster Advanced Surge Thruster Advanced Surge Thruster > --- UTILITY ---------- Improved Melee Analysis Suite Advanced Reaction Control System > --- WEAPON ----------- Advanced Concussive RPG Dual-blade Saw > --- INVENTORY -------- (None) [Rating: 52] Favorites ----------- Power Light Ion Engine Engine Light Ion Engine Power Core Micro Fission Core Reactor Light Antimatter Reactor Propulsion Wheel Leg Aluminum Leg Wheel Wheel Hover Unit Hover Unit Flight Unit Flight Unit Utility Hacking Suite Device Improved Terrain Scanner Storage Small Matter Pod Processor Improved Melee Analysis Suite Hackware Hacking Suite Weapon Backup Laser III Energy Gun Backup Laser III Ballistic Gun Autogun Launcher Advanced Concussive RPG Special Weapon Mining Laser Slashing Weapon Dual-blade Saw Special Melee Weapon Datajack Build | -11 -10 -10 -10 -9 -8 -8 -8 -8 -7 -6 -5 -5 -4 -4 -3 -2 -2 -1 ------- Run | Yrd Mat Min Exi Min Mat Gar Mat Sto Fac Fac Fac DSF Fac Gar Res Res DSF Acc Slots Evolved . | . . . . . . . . . . . . . . . . . . . Power . | . . . . . . . . . . . . . . . . . . . Propulsion . | . . . . . . . . . . . . . . . . . . . Utility . | . . . . . . . . . . . . . . . . . . . Weapon . | . . . . . . . . . . . . . . . . . . . Parts Attached . | . . . . . . . . . . . . . . . . . . . Power . | . . . . . . . . . . . . . . . . . . . Engine . | . . . . . . . . . . . . . . . . . . . Core . | . . . . . . . . . . . . . . . . . . . Reactor . | . . . . . . . . . . . . . . . . . . . Propulsion . | . . . . . . . . . . . . . . . . . . . Treads . | . . . . . . . . . . . . . . . . . . . Leg . | . . . . . . . . . . . . . . . . . . . Wheel . | . . . . . . . . . . . . . . . . . . . Hover . | . . . . . . . . . . . . . . . . . . . Flight . | . . . . . . . . . . . . . . . . . . . Utility . | . . . . . . . . . . . . . . . . . . . Device . | . . . . . . . . . . . . . . . . . . . Storage . | . . . . . . . . . . . . . . . . . . . Processor . | . . . . . . . . . . . . . . . . . . . Hackware . | . . . . . . . . . . . . . . . . . . . Protection . | . . . . . . . . . . . . . . . . . . . Artifact . | . . . . . . . . . . . . . . . . . . . Weapon . | . . . . . . . . . . . . . . . . . . . Energy Gun . | . . . . . . . . . . . . . . . . . . . Energy Cannon . | . . . . . . . . . . . . . . . . . . . Ballistic Gun . | . . . . . . . . . . . . . . . . . . . Ballistic Cannon . | . . . . . . . . . . . . . . . . . . . Launcher . | . . . . . . . . . . . . . . . . . . . Special Weapon . | . . . . . . . . . . . . . . . . . . . Impact Weapon . | . . . . . . . . . . . . . . . . . . . Slashing Weapon . | . . . . . . . . . . . . . . . . . . . Piercing Weapon . | . . . . . . . . . . . . . . . . . . . Special Melee Weapon . | . . . . . . . . . . . . . . . . . . . Unidentified Prototypes . | . . . . . . . . . . . . . . . . . . . Parts Lost 31 | . 1 3 . . . . . 7 1 3 . 1 . 1 . . 3 11 Power 8 | . . 1 . . . . . 2 . 1 . 1 . . . . 1 2 Propulsion 14 | . . 2 . . . . . 4 . 1 . . . 1 . . 1 5 Utility 4 | . . . . . . . . . . . . . . . . . 1 3 Weapon 5 | . 1 . . . . . . 1 1 1 . . . . . . . 1 Highest Loss Streak 8 | . 1 2 . . . . . 6 1 3 . 1 . 1 . . 3 8 To Critical Strikes . | . . . . . . . . . . . . . . . . . . . Average Slot Usage (%) 60 | . 94 68 18 80 80 80 80 74 100 66 25 2 75 75 66 . 79 59 Engine 9 | . 18 6 . 20 20 20 20 15 25 18 . . . . . . . 2 Wheel 10 | . 9 . . 40 40 40 40 29 . . . . . . . . . 11 Hover 6 | . 28 22 . . . . . . . . . . . . 16 . 23 . Flight 9 | . . . . . . . . 1 50 42 25 2 50 50 8 . . 15 Device 2 | . 9 . . . . . . 6 . . . . . . 8 . 16 5 Storage 5 | . . . . 20 20 20 20 14 . . . . . . . . . 6 Processor 1 | . . . . . . . . . . . . . . . 16 . 29 4 Hackware 5 | . 14 20 9 . . . . . . . . . . . . . . . Energy Gun 6 | . 2 20 9 . . . . 2 . . . . . . . . . 1 Ballistic Gun 2 | . . . . . . . . . 25 2 . . 25 25 8 . . . Naked Turns 428 | . . . 135 1 . . . 36 . 24 . 180 . . 2 . . 50 Heaviest Build 26 | 6 6 5 2 4 4 4 4 9 4 8 . 8 3 3 13 13 15 26 Greatest Support 64 | 20 20 12 3 20 20 20 20 32 8 8 4 8 8 8 22 22 22 64 Greatest Overweight (x) 2 | . . . . . . . . . . . . . . . . . 1 2 Average Overweight (x) . | . . . . . . . . . . . . . . . . . . . Largest Inventory Capacity 6 | . 1 1 1 1 1 1 1 4 . . . . . . . . . 6 Average Capacity . | . . 1 . . 1 1 1 1 . . . . . . . . . . Most Carried 3 | . . . 1 . . . . 3 . . . . . . . . . . Average Carried . | . . . . . . . . . . . . . . . . . . . Final Capacity 6 | . 1 1 . 1 1 1 1 . . . . . . . . . . 6 Final Carried . | . . . . . . . . . . . . . . . . . . . Class Distribution -------------------- 29% | Operator 22% | Worker 17% | Swarmer 17% | Cogmind 4% | Cutter 3% | Watcher Dominant Class ---------------- Operator | -10/Materials Operator | -10/Mines Cogmind | -10/Exiles Worker | -9/Mines Worker | -8/Materials Worker | -8/Garrison Worker | -8/Materials Worker | -8/Storage Swarmer | -7/Factory Swarmer | -6/Factory Swarmer | -5/Factory Cogmind | -5/DSF Swarmer | -4/Factory Swarmer | -4/Garrison Watcher | -3/Research Watcher | -2/Research Watcher | -2/DSF Cutter | -1/Access Resources | -11 -10 -10 -10 -9 -8 -8 -8 -8 -7 -6 -5 -5 -4 -4 -3 -2 -2 -1 ----------- Run | Yrd Mat Min Exi Min Mat Gar Mat Sto Fac Fac Fac DSF Fac Gar Res Res DSF Acc Matter Collected 100 | . . . . 50 . . . 50 . . . . . . . . . . Remotely . | . . . . . . . . . . . . . . . . . . . Salvage Created 65 | . . 65 . . . . . . . . . . . . . . . . Parts 7 | . . 7 . . . . . . . . . . . . . . . . Haulers Intercepted . | . . . . . . . . . . . . . . . . . . . Recyclers Shooed . | . . . . . . . . . . . . . . . . . . . Parts Field Recycled . | . . . . . . . . . . . . . . . . . . . Retrieved Matter . | . . . . . . . . . . . . . . . . . . . Parts Self-Destructed . | . . . . . . . . . . . . . . . . . . . Prevented . | . . . . . . . . . . . . . . . . . . . Kills | -11 -10 -10 -10 -9 -8 -8 -8 -8 -7 -6 -5 -5 -4 -4 -3 -2 -2 -1 ------- Run | Yrd Mat Min Exi Min Mat Gar Mat Sto Fac Fac Fac DSF Fac Gar Res Res DSF Acc Combat Hostiles Destroyed 4 | . . 4 . . . . . . . . . . . . . . . . Guns 4 | . . 4 . . . . . . . . . . . . . . . . Classes Destroyed 2 | . . 2 . . . . . . . . . . . . . . . . Swarmer 3 | . . 3 . . . . . . . . . . . . . . . . Grunt 1 | . . 1 . . . . . . . . . . . . . . . . Best Kill Streak 3 | . . 3 . . . . . . . . . . . . . . . . Combat Bots Only 3 | . . 3 . . . . . . . . . . . . . . . . Max Kills in Single Turn 1 | . . 1 . . . . . . . . . . . . . . . . Gunslinging . | . . . . . . . . . . . . . . . . . . . Exploded . | . . . . . . . . . . . . . . . . . . . Melee . | . . . . . . . . . . . . . . . . . . . Uniques/NPCs Destroyed . | . . . . . . . . . . . . . . . . . . . Combat | -11 -10 -10 -10 -9 -8 -8 -8 -8 -7 -6 -5 -5 -4 -4 -3 -2 -2 -1 -------- Run | Yrd Mat Min Exi Min Mat Gar Mat Sto Fac Fac Fac DSF Fac Gar Res Res DSF Acc Hostile Shots Fired 477 | . 8 38 . . . 2 . 75 7 55 . 25 . 55 . . 62 150 Missed 220 | . 3 7 . . . 1 . 24 4 29 . 9 . 39 . . 42 62 Damage Taken 5594 | . 63 319 . . . 14 . 771 154 487 . 487 . 303 . . 715 2281 Core 3738 | . 16 200 . . . 14 . 268 74 341 . 439 . 192 . . 582 1612 Absorbed by Shields 11 | . . . . . . . . . . . . 11 . . . . . . Core Remaining (%) 67 | 100 . . . 13 . . . 48 89 59 . 56 . 83 100 . 59 . Volleys Fired 33 | . . 17 . . . . . 10 4 . . . . . . . . 2 Largest 1 | . . 1 . . . . . 1 1 . . . . . . . . 1 Hottest 65 | . . 40 . . . . . 65 20 . . . . . . . . 40 Shots Fired 33 | . . 17 . . . . . 10 4 . . . . . . . . 2 Gun 32 | . . 17 . . . . . 10 4 . . . . . . . . 1 Cannon . | . . . . . . . . . . . . . . . . . . . Launcher 1 | . . . . . . . . . . . . . . . . . . 1 Special . | . . . . . . . . . . . . . . . . . . . Kinetic 4 | . . . . . . . . . 4 . . . . . . . . . Thermal 28 | . . 17 . . . . . 10 . . . . . . . . . 1 Explosive 1 | . . . . . . . . . . . . . . . . . . 1 Electromagnetic . | . . . . . . . . . . . . . . . . . . . Robot Hit Streak 8 | . . 5 . . . . . 8 7 . . . . . . . . . Robot Miss Streak 2 | . . 1 . . . . . 2 1 . . . . . . . . . Penetration Max . | . . . . . . . . . . . . . . . . . . . Secondary Targets . | . . . . . . . . . . . . . . . . . . . Shots Hit Robots 25 | . 1 12 . . . . . 8 3 . . . . . . . . 1 Core Hits 9 | . . 5 . . . . . . . 2 . . . . . . . 2 Critical Kills . | . . . . . . . . . . . . . . . . . . . Critical Parts Destroyed . | . . . . . . . . . . . . . . . . . . . Critical Strikes 2 | . . . . . . . . 1 . . . . . . . . . 1 Burn 1 | . . . . . . . . 1 . . . . . . . . . . Sever 1 | . . . . . . . . . . . . . . . . . . 1 Melee Attacks 4 | . 1 . . . . . . . . . . . . . . . . 3 Impact . | . . . . . . . . . . . . . . . . . . . Slashing 3 | . . . . . . . . . . . . . . . . . . 3 Piercing . | . . . . . . . . . . . . . . . . . . . Sneak Attacks 1 | . 1 . . . . . . . . . . . . . . . . . Combat Hostiles . | . . . . . . . . . . . . . . . . . . . Follow-up Attacks . | . . . . . . . . . . . . . . . . . . . Damage Inflicted 439 | . . 166 . . . . . 140 26 42 . . . . . . . 65 Guns 313 | . . 155 . . . . . 133 25 . . . . . . . . . Cannons . | . . . . . . . . . . . . . . . . . . . Explosions . | . . . . . . . . . . . . . . . . . . . Melee 38 | . . . . . . . . . . . . . . . . . . 38 Ramming 88 | . . 11 . . . . . 7 1 42 . . . . . . . 27 Kinetic 25 | . . . . . . . . . 25 . . . . . . . . . Thermal 288 | . . 155 . . . . . 133 . . . . . . . . . . Explosive . | . . . . . . . . . . . . . . . . . . . Electromagnetic . | . . . . . . . . . . . . . . . . . . . Impact . | . . . . . . . . . . . . . . . . . . . Slashing 38 | . . . . . . . . . . . . . . . . . . 38 Piercing . | . . . . . . . . . . . . . . . . . . . Highest Corruption 4 | . . . . . . . . . . . . . . . . . . 4 Average Corruption 3 | . . . . . . . . . . . . . . . . . . 3 Corruption Purged . | . . . . . . . . . . . . . . . . . . . Corruption Blocked . | . . . . . . . . . . . . . . . . . . . Effects 1 | . . . . . . . . . . . . . . . . . . 1 Data Loss (major) 1 | . . . . . . . . . . . . . . . . . . 1 Overload Shots . | . . . . . . . . . . . . . . . . . . . Overflow Damage . | . . . . . . . . . . . . . . . . . . . Projectiles . | . . . . . . . . . . . . . . . . . . . Explosions . | . . . . . . . . . . . . . . . . . . . Melee . | . . . . . . . . . . . . . . . . . . . Knockbacks . | . . . . . . . . . . . . . . . . . . . Impact . | . . . . . . . . . . . . . . . . . . . Kinetic . | . . . . . . . . . . . . . . . . . . . Secondary . | . . . . . . . . . . . . . . . . . . . Self-Inflicted Damage 37 | . . 5 . . . . . 3 . 18 . . . . . . . 11 Shots . | . . . . . . . . . . . . . . . . . . . Rammed 29 | . . 4 . . . . . 2 1 9 . . . . . . . 13 Targets Rammed 29 | . . 4 . . . . . 2 1 9 . . . . . . . 13 Kicked . | . . . . . . . . . . . . . . . . . . . Crushed . | . . . . . . . . . . . . . . . . . . . Highest Temperature 225 | . 17 176 . . . 16 . 225 10 . . . . . 4 . . 22 Average Temperature 66 | . 7 76 . . . 16 . 80 8 . . . . . 4 . . 7 Received Heat Transfer 861 | . 33 90 . . . 27 . 423 . 12 . 6 . 27 . . . 243 Siege Activations . | . . . . . . . . . . . . . . . . . . . Robots Corrupted . | . . . . . . . . . . . . . . . . . . . Combat Hostiles . | . . . . . . . . . . . . . . . . . . . Parts Fried . | . . . . . . . . . . . . . . . . . . . Impact Corruptions . | . . . . . . . . . . . . . . . . . . . Robots Melted . | . . . . . . . . . . . . . . . . . . . Combat Hostiles . | . . . . . . . . . . . . . . . . . . . Parts Melted 2 | . . 2 . . . . . . . . . . . . . . . . Heat Transferred 779 | . . 444 . . . . . 335 . . . . . . . . . . Parts Sabotaged . | . . . . . . . . . . . . . . . . . . . Parts Stolen . | . . . . . . . . . . . . . . . . . . . Parts Stripped . | . . . . . . . . . . . . . . . . . . . Power Chain Reactions . | . . . . . . . . . . . . . . . . . . . Missiles Intercepted . | . . . . . . . . . . . . . . . . . . . Alert | -11 -10 -10 -10 -9 -8 -8 -8 -8 -7 -6 -5 -5 -4 -4 -3 -2 -2 -1 ------- Run | Yrd Mat Min Exi Min Mat Gar Mat Sto Fac Fac Fac DSF Fac Gar Res Res DSF Acc Peak Influence 313 | . 202 203 . . 8 50 24 94 42 313 145 175 84 158 107 54 40 118 Initial 145 | . . 78 . . . 5 24 9 42 15 145 101 84 68 83 54 40 14 Average 78 | . 78 126 . . 3 6 24 34 41 115 145 161 84 94 98 54 33 76 Maximum Alert Level 1 | . 1 1 . . . . . . . 1 . . . . . . . . Low Security (%) 87 | 100 98 57 . 100 100 100 100 100 100 71 100 100 100 100 100 100 100 100 Level 1 12 | . 1 42 . . . . . . . 28 . . . . . . . . Level 2 . | . . . . . . . . . . . . . . . . . . . Level 3 . | . . . . . . . . . . . . . . . . . . . Level 4 . | . . . . . . . . . . . . . . . . . . . Level 5 . | . . . . . . . . . . . . . . . . . . . High Security . | . . . . . . . . . . . . . . . . . . . Max Security . | . . . . . . . . . . . . . . . . . . . Squads Dispatched 24 | . 2 1 . . . . . 6 1 7 . 2 . . . . 1 4 Investigation 13 | . 2 1 . . . . . 3 . 5 . . . . . . . 2 Extermination . | . . . . . . . . . . . . . . . . . . . Reinforcement 8 | . . . . . . . . . 1 2 . 2 . . . . 1 2 Assault 3 | . . . . . . . . 3 . . . . . . . . . . Garrison . | . . . . . . . . . . . . . . . . . . . Intercept . | . . . . . . . . . . . . . . . . . . . Searches Triggered . | . . . . . . . . . . . . . . . . . . . Construction Impeded 1 | . . . . . . . . . . 1 . . . . . . . . Haulers Reinforced . | . . . . . . . . . . . . . . . . . . . Active Scanning Responses . | . . . . . . . . . . . . . . . . . . . Cargo Convoy Interrupts . | . . . . . . . . . . . . . . . . . . . Stealth | -11 -10 -10 -10 -9 -8 -8 -8 -8 -7 -6 -5 -5 -4 -4 -3 -2 -2 -1 --------- Run | Yrd Mat Min Exi Min Mat Gar Mat Sto Fac Fac Fac DSF Fac Gar Res Res DSF Acc Distress Signals 4 | . . . . . . . . . . . . . . . . . . 4 Communications Jammed . | . . . . . . . . . . . . . . . . . . . Distress Signals . | . . . . . . . . . . . . . . . . . . . Times Spotted 182 | . 10 10 . 2 . 1 . 54 1 19 . 9 . 19 1 . 6 50 Peak Tracking Total 17 | . 11 5 . 2 . 3 . 17 1 6 . 4 . 16 1 . 4 14 Tactical Retreats 14 | . 1 3 . 1 . . . 2 . 2 . 2 . 1 . . 1 1 Traps | -11 -10 -10 -10 -9 -8 -8 -8 -8 -7 -6 -5 -5 -4 -4 -3 -2 -2 -1 ------- Run | Yrd Mat Min Exi Min Mat Gar Mat Sto Fac Fac Fac DSF Fac Gar Res Res DSF Acc Traps Triggered 7 | . . . . . . . . 2 . 1 . 2 . . . . . 2 Indirectly . | . . . . . . . . . . . . . . . . . . . Trap Hack Attempts 1 | . 1 . . . . . . . . . . . . . . . . . Triggered . | . . . . . . . . . . . . . . . . . . . Disarmed . | . . . . . . . . . . . . . . . . . . . Reprogrammed . | . . . . . . . . . . . . . . . . . . . Reused . | . . . . . . . . . . . . . . . . . . . Traps Extracted . | . . . . . . . . . . . . . . . . . . . Installed . | . . . . . . . . . . . . . . . . . . . Triggered . | . . . . . . . . . . . . . . . . . . . Machines | -11 -10 -10 -10 -9 -8 -8 -8 -8 -7 -6 -5 -5 -4 -4 -3 -2 -2 -1 ---------- Run | Yrd Mat Min Exi Min Mat Gar Mat Sto Fac Fac Fac DSF Fac Gar Res Res DSF Acc Machines Disabled 1 | . . . . . . . . . . . . . . . . . . 1 Max in Single Turn 1 | . . . . . . . . . . . . . . . . . . 1 Garrison Access 1 | . . . . . . . . 1 . . . . . . . . . . Energy Cycler 1 | . . . . . . . . . . . . . . . . . . 1 Machines Repaired . | . . . . . . . . . . . . . . . . . . . Machines Dismantled . | . . . . . . . . . . . . . . . . . . . Machines Sabotaged . | . . . . . . . . . . . . . . . . . . . Overloaded Fab Kills . | . . . . . . . . . . . . . . . . . . . Hacking | -11 -10 -10 -10 -9 -8 -8 -8 -8 -7 -6 -5 -5 -4 -4 -3 -2 -2 -1 --------- Run | Yrd Mat Min Exi Min Mat Gar Mat Sto Fac Fac Fac DSF Fac Gar Res Res DSF Acc Machines Accessed 29 | . 5 1 2 . 2 . . 5 . 7 1 . 1 . 1 1 . 3 Terminals 18 | . 3 . . . 1 . . 5 . 5 1 . . . 1 1 . 1 Fabricators 1 | . . . . . . . . . . 1 . . . . . . . . Repair Stations 4 | . 1 . . . . . . . . 1 . . . . . . . 2 Recycling Units 1 | . 1 . . . . . . . . . . . . . . . . . Scanalyzers . | . . . . . . . . . . . . . . . . . . . Garrison Access 2 | . . . . . 1 . . . . . . . 1 . . . . . Total Hacks 70 | . 15 1 5 . 3 . . 13 . 20 2 . 1 . 2 2 . 6 Successful 30 | . 9 1 5 . 2 . . 2 . 5 1 . 1 . 1 1 . 2 Failed 40 | . 6 . . . 1 . . 11 . 15 1 . . . 1 1 . 4 Catastrophic 10 | . . . . . . . . 3 . 5 . . . . . . . 2 Database Lockouts . | . . . . . . . . . . . . . . . . . . . Manual 11 | . 4 . 1 . 2 . . 3 . 1 . . . . . . . . Terminals 51 | . 13 . . . 2 . . 13 . 15 2 . . . 2 2 . 2 Fabricators 1 | . . . . . . . . . . 1 . . . . . . . . Repair Stations 9 | . 1 . . . . . . . . 4 . . . . . . . 4 Recycling Units 1 | . 1 . . . . . . . . . . . . . . . . . Scanalyzers . | . . . . . . . . . . . . . . . . . . . Garrison Access 2 | . . . . . 1 . . . . . . . 1 . . . . . Terminal Hacks 22 | . 5 1 5 . 1 . . 2 . 4 1 . . . 1 1 . 1 Record 4 | . . . 4 . . . . . . . . . . . . . . . Robot Analysis 2 | . 2 . . . . . . . . . . . . . . . . . Open Door 3 | . . 1 . . . . . 2 . . . . . . . . . . Open DSF 3 | . . . . . . . . . . 1 1 . . . . 1 . . Level Access Points 1 | . . . . . . . . . . . . . . . . . . 1 Branch Access Points 2 | . 1 . . . 1 . . . . . . . . . . . . . Emergency Access Points 1 | . 1 . . . . . . . . . . . . . . . . . Terminal Index 1 | . . . . . . . . . . 1 . . . . . . . . Locate Traps 2 | . 1 . . . . . . . . 1 . . . . . . . . Zone Layout 2 | . . . . . . . . . . 1 . . . . 1 . . . Derelict Proto ID Bank 1 | . . . 1 . . . . . . . . . . . . . . . Fabricator Hacks . | . . . . . . . . . . . . . . . . . . . Repair Station Hacks 2 | . 1 . . . . . . . . . . . . . . . . 1 Refit 2 | . 1 . . . . . . . . . . . . . . . . 1 Recycling Unit Hacks . | . . . . . . . . . . . . . . . . . . . Scanalyzer . | . . . . . . . . . . . . . . . . . . . Garrison Access Hacks 2 | . . . . . 1 . . . . . . . 1 . . . . . Unlock Access 2 | . . . . . 1 . . . . . . . 1 . . . . . Unauthorized Hacks 4 | . 3 . . . . . . . . 1 . . . . . . . . Terminals 2 | . 2 . . . . . . . . . . . . . . . . . Track 1 | . 1 . . . . . . . . . . . . . . . . . Botnet 1 | . 1 . . . . . . . . . . . . . . . . . Fabricators 1 | . . . . . . . . . . 1 . . . . . . . . Download 1 | . . . . . . . . . . 1 . . . . . . . . Repair Stations . | . . . . . . . . . . . . . . . . . . . Recycling Units 1 | . 1 . . . . . . . . . . . . . . . . . Tunnel 1 | . 1 . . . . . . . . . . . . . . . . . Scanalyzers . | . . . . . . . . . . . . . . . . . . . Garrison Access . | . . . . . . . . . . . . . . . . . . . Data Cores Recovered . | . . . . . . . . . . . . . . . . . . . Used . | . . . . . . . . . . . . . . . . . . . Hacking Detections 20 | . 3 . . . 1 . . 4 . 5 1 . 1 . 1 1 . 3 Full Trace Events 10 | . 1 . . . . . . 3 . 4 . . . . . . . 2 Feedback Events . | . . . . . . . . . . . . . . . . . . . Feedback Blocked . | . . . . . . . . . . . . . . . . . . . Robot Schematics Acquired . | . . . . . . . . . . . . . . . . . . . Robots Built . | . . . . . . . . . . . . . . . . . . . Authchips . | . . . . . . . . . . . . . . . . . . . Time . | . . . . . . . . . . . . . . . . . . . Total Robot Build Rating . | . . . . . . . . . . . . . . . . . . . Part Schematics Acquired 1 | . . . . . . . . . . 1 . . . . . . . . Parts Built . | . . . . . . . . . . . . . . . . . . . Authchips . | . . . . . . . . . . . . . . . . . . . Time . | . . . . . . . . . . . . . . . . . . . Total Part Build Rating . | . . . . . . . . . . . . . . . . . . . Parts Repaired . | . . . . . . . . . . . . . . . . . . . Time . | . . . . . . . . . . . . . . . . . . . Parts Recycled . | . . . . . . . . . . . . . . . . . . . Recycled Matter . | . . . . . . . . . . . . . . . . . . . Retrieved Matter . | . . . . . . . . . . . . . . . . . . . Retrieved Components . | . . . . . . . . . . . . . . . . . . . Parts Scanalyzed . | . . . . . . . . . . . . . . . . . . . Part Schematics Acquired . | . . . . . . . . . . . . . . . . . . . Parts Damaged . | . . . . . . . . . . . . . . . . . . . Bothacking | -11 -10 -10 -10 -9 -8 -8 -8 -8 -7 -6 -5 -5 -4 -4 -3 -2 -2 -1 ------------ Run | Yrd Mat Min Exi Min Mat Gar Mat Sto Fac Fac Fac DSF Fac Gar Res Res DSF Acc Used RIF Installer 1 | . . . . . . . . . . . . . . 1 . . . . Robots Hacked 11 | . 2 . . . . . . 4 . 1 . 1 . . 1 . 1 1 Non-combat 5 | . 2 . . . . . . 1 . . . . . . 1 . . 1 Combat 6 | . . . . . . . . 3 . 1 . 1 . . . . 1 . Robot Hacks Applied 15 | . 2 . . . . . . 6 . 2 . 1 . . 2 . 1 1 parse_system 1 | . 1 . . . . . . . . . . . . . . . . . find_recycling 2 | . . . . . . . . 1 . . . . . . . . . 1 find_terminals 1 | . 1 . . . . . . . . . . . . . . . . . map_route 1 | . . . . . . . . . . . . . . . 1 . . . mark_security 1 | . . . . . . . . . . . . . . . 1 . . . find_shortcuts 6 | . . . . . . . . 3 . 1 . 1 . . . . 1 . find_garrison 3 | . . . . . . . . 2 . 1 . . . . . . . . Relay Couplers Released 3 | . . . . . . . . 3 . . . . . . . . . . Machine Destruction 3 | . . . . . . . . 3 . . . . . . . . . . Fabnet Peak Effective % . | . . . . . . . . . . . . . . . . . . . Robots Rewired 1 | . . . . . . . . . . . 1 . . . . . . . Allies Hacked . | . . . . . . . . . . . . . . . . . . . Hacks Repelled . | . . . . . . . . . . . . . . . . . . . Allies | -11 -10 -10 -10 -9 -8 -8 -8 -8 -7 -6 -5 -5 -4 -4 -3 -2 -2 -1 -------- Run | Yrd Mat Min Exi Min Mat Gar Mat Sto Fac Fac Fac DSF Fac Gar Res Res DSF Acc Total Allies 3 | . . . . . . . . 2 . . 1 . . . . . . . Largest Group 2 | . . . . . . . . 2 . . 1 1 . . . . . . Highest-Rated Group 62 | . . . . . . . . 62 . . 49 49 . . . . . . Highest-Rated Ally 49 | . . . . . . . . 31 . . 49 49 . . . . . . Total Orders . | . . . . . . . . . . . . . . . . . . . Ally Attacks 21 | . . . . . . . . 12 . . . 9 . . . . . . Total Damage 498 | . . . . . . . . 188 . . . 310 . . . . . . Kills 2 | . . . . . . . . . . . . 2 . . . . . . Allies Corrupted . | . . . . . . . . . . . . . . . . . . . Allies Melted . | . . . . . . . . . . . . . . . . . . . Intel | -11 -10 -10 -10 -9 -8 -8 -8 -8 -7 -6 -5 -5 -4 -4 -3 -2 -2 -1 ------- Run | Yrd Mat Min Exi Min Mat Gar Mat Sto Fac Fac Fac DSF Fac Gar Res Res DSF Acc Robot Analysis Total 12 | 1 3 . . 1 . . . 3 . 1 . . . . 1 . 1 1 Derelict Logs Recovered 2 | . . 1 . 1 . . . . . . . . . . . . . . Drone Launches . | . . . . . . . . . . . . . . . . . . . Drone Recoveries . | . . . . . . . . . . . . . . . . . . . Exploration | -11 -10 -10 -10 -9 -8 -8 -8 -8 -7 -6 -5 -5 -4 -4 -3 -2 -2 -1 ------------- Run | Yrd Mat Min Exi Min Mat Gar Mat Sto Fac Fac Fac DSF Fac Gar Res Res DSF Acc Turns Passed 2583 | 146 72 545 260 134 45 76 41 330 99 199 36 204 5 66 55 2 48 220 Spaces Moved 3813 | 116 114 446 515 168 56 95 52 379 246 505 72 156 13 204 114 3 83 476 Core 979 | 16 . 159 515 1 . . . 60 . 21 . 100 . . . . 16 91 Treads . | . . . . . . . . . . . . . . . . . . . Legs 19 | . . . . . . . . 19 . . . . . . . . . . Wheels 859 | 100 22 . . 167 56 95 52 283 . . . . . . . . . 84 Hover 510 | . 92 287 . . . . . . . . . . . . 62 3 66 . Flight 1446 | . . . . . . . . 17 246 484 72 56 13 204 52 . 1 301 Fastest Speed 7 | 50 56 50 50 50 80 80 80 37 37 32 35 32 32 32 35 56 19 7 Average Speed 51 | 75 60 54 50 79 80 80 80 78 37 36 35 44 32 32 46 56 56 36 Slowest Speed 150 | 80 80 60 50 80 80 80 80 120 37 50 35 50 32 35 56 56 120 150 Overloaded Moves 15 | . . . . . . . . . . . . . . . . . . 15 Propulsion Burnouts . | . . . . . . . . . . . . . . . . . . . Robots Hopped 18 | . . . . . . . . 2 3 2 1 1 . 6 . . . 3 Cave-ins Triggered . | . . . . . . . . . . . . . . . . . . . Exploration Rate (%) 35 | 7 36 90 89 40 8 26 10 52 11 20 3 87 1 44 4 . 90 20 Regions Visited 18 Branch Regions 4 Pre-discovered Areas 3 | . 1 . 1 . . . . 1 . . . . . . . . . . Known Exits Taken 7 | . 1 . . . 1 . 1 . . . 1 . 1 . 1 1 . . Unknown Exits Taken 7 | 1 . 1 1 1 . . . 1 1 1 . . . . . . . . Scrap Searched . | . . . . . . . . . . . . . . . . . . . Spaces Dug 1 | . . . . . . . . . . . . . . . . . . 1 Terrain Destroyed 1 | . . . . . . . . . . . . . . . . . . 1 Melee 1 | . . . . . . . . . . . . . . . . . . 1 Projectile . | . . . . . . . . . . . . . . . . . . . AOE . | . . . . . . . . . . . . . . . . . . . Terrain Rammed . | . . . . . . . . . . . . . . . . . . . Walls Destroyed . | . . . . . . . . . . . . . . . . . . . Machines Disabled . | . . . . . . . . . . . . . . . . . . . Actions | -11 -10 -10 -10 -9 -8 -8 -8 -8 -7 -6 -5 -5 -4 -4 -3 -2 -2 -1 --------- Run | Yrd Mat Min Exi Min Mat Gar Mat Sto Fac Fac Fac DSF Fac Gar Res Res DSF Acc Total 4358 | 173 115 732 517 167 56 94 51 399 247 516 81 289 13 197 115 2 83 511 Wait 385 | . . 266 . . . . . 4 . 5 9 100 . . . . . 1 Move 3767 | 115 113 445 514 167 56 94 51 374 240 501 69 153 13 195 113 2 82 470 Hop 14 | . . . . . . . . 2 3 2 1 1 . 2 . . . 3 Pick Up 3 | . . . 2 . . . . 1 . . . . . . . . . . Fast Attach . | . . . . . . . . . . . . . . . . . . . Attach . | . . . . . . . . . . . . . . . . . . . Detach . | . . . . . . . . . . . . . . . . . . . Swap . | . . . . . . . . . . . . . . . . . . . Drop 1 | . . . 1 . . . . . . . . . . . . . . . Fire 33 | . . 17 . . . . . 10 4 . . . . . . . . 2 Melee 4 | . 1 . . . . . . . . . . . . . . . . 3 Ram 27 | . . 4 . . . . . 2 . 8 . . . . . . . 13 Kick . | . . . . . . . . . . . . . . . . . . . Crush . | . . . . . . . . . . . . . . . . . . . Escape Stasis 53 | . . . . . . . . 6 . . . 29 . . . . . 18 Rewire 12 | . . . . . . . . . . . 2 6 . . 2 . 1 1 Trap 1 | . 1 . . . . . . . . . . . . . . . . . Miscellaneous 58 | 58 . . . . . . . . . . . . . . . . . . Route ------- -11/Scrapyard -10/Materials (discovered 2 exits: *Min x2) -10/Mines (discovered 2 exits: [*Mat] / *Exi) -10/Exiles -9/Mines -8/Materials (discovered 3 exits: Sto x2 / Gar) -8/Garrison -8/Materials -8/Storage -7/Factory -6/Factory -5/Factory -5/DSF -4/Factory -4/Garrison -3/Research -2/Research -2/DSF -1/Access (discovered 1 exit: Sur) History --------- Turn | Location | Event 2 | -11/Scrapyard | Discovered new exit (range 16) 147 | -11/Scrapyard | Entered Materials 161 | -10/Materials | Identified exit to Mines 219 | -10/Materials | Entered Mines 283 | -10/Mines | Discovered new exit (range 11) 348 | -10/Mines | Met a Derelict shopkeep closing up shop 399 | -10/Mines | Excavation squad dispatched 399 | -10/Mines | A large section of the Mines collapsed 649 | -10/Mines | Excavation squad dispatched 706 | -10/Mines | Core integrity fell below 50% 733 | -10/Mines | Core integrity fell below 20% 752 | -10/Mines | Learned Materials non-interactive machine intel 762 | -10/Mines | Deemed a non-threat by the Exiles lab entrance 762 | -10/Mines | Discovered new exit (range 5) 764 | -10/Mines | Entered Exiles 778 | -10/Exiles | Met 8R-AWN 786 | -10/Exiles | Met EX-HEX 806 | -10/Exiles | Met EX-DEC 815 | -10/Exiles | Learned location of Zion (-7) 827 | -10/Exiles | Met EX-BIN 833 | -10/Exiles | Aligned with FarCom system 833 | -10/Exiles | Given EX-Vault access code 845 | -10/Exiles | Opened EX-Vault 849 | -10/Exiles | Found 0b10 Alert Chip 861 | -10/Exiles | Warned to stay clear of 0b10 Research branches 936 | -10/Exiles | Visited The Gauntlet 1019 | -10/Exiles | Discovered new exit (range 11) 1024 | -10/Exiles | Entered Mines 1037 | -9/Mines | Assembled infested the area 1042 | -9/Mines | Assisted by a Guerilla fighting off Assembled 1046 | -9/Mines | Learned Materials non-interactive machine intel 1150 | -9/Mines | Discovered new exit (range 8) 1158 | -9/Mines | Entered Materials 1159 | -8/Materials | Loaded intel: 49 non-interactive machine locations 1181 | -8/Materials | Identified exit to Storage 1203 | -8/Materials | Identified exit to Garrison 1203 | -8/Materials | Entered Garrison 1238 | -8/Garrison | Triggered checkpoint 1248 | -8/Garrison | Triggered checkpoint 1269 | -8/Garrison | Discovered new exit (range 13) 1270 | -8/Garrison | Triggered checkpoint 1279 | -8/Garrison | Entered Materials 1280 | -8/Materials | Loaded intel: 32 non-interactive machine locations 1317 | -8/Materials | Discovered exit to Storage (range 4) 1320 | -8/Materials | Entered Storage 1379 | -8/Storage | Met a pair of Derelict thieves 1526 | -8/Storage | Lost 6 parts (2p3n1w) 1575 | -8/Storage | Learned location of Armory (-4) 1644 | -8/Storage | Core integrity fell below 50% 1648 | -8/Storage | Discovered new exit (range 5) 1650 | -8/Storage | Entered Factory 1733 | -7/Factory | Discovered new exit (range 14) 1749 | -7/Factory | Entered another Factory area 1943 | -6/Factory | Discovered new exit (range 14) 1948 | -6/Factory | Entered another Factory area 1975 | -5/Factory | Identified exit to DSF 1977 | -5/Factory | Lost 3 parts (1p1n1w) 1984 | -5/Factory | Entered DSF 1984 | -5/DSF | Accompanied by 1 ally 2020 | -5/DSF | Additional patrols routed to DSF 2183 | -5/DSF | Discovered new exit (range 15) 2188 | -5/DSF | Entered Factory 2193 | -4/Factory | Identified exit to Garrison 2193 | -4/Factory | Entered Garrison 2216 | -4/Garrison | Installed Relay Interface Framework 2228 | -4/Garrison | Spotted B-86 Titan 2231 | -4/Garrison | Triggered checkpoint 2237 | -4/Garrison | Triggered checkpoint 2257 | -4/Garrison | Discovered new exit (range 8) 2259 | -4/Garrison | Entered Research 2303 | -3/Research | Discovered new exit (range 18) 2313 | -3/Research | Identified exit to Research 2314 | -3/Research | Entered another Research area 2316 | -2/Research | Identified exit to DSF 2316 | -2/Research | Entered DSF 2353 | -2/DSF | Discovered new exit (range 15) 2364 | -2/DSF | Identified exit to Access 2364 | -2/DSF | Entered Access 2368 | -1/Access | Energy Cycler disabled 2382 | -1/Access | Lost 3 parts (1p1n1u) 2394 | -1/Access | Identified exit to Surface 2488 | -1/Access | Core integrity fell below 50% 2513 | -1/Access | Lost 8 parts (1p3n3u1w) 2550 | -1/Access | Core integrity fell below 20% 2584 | -1/Access | Destroyed by H-88 Terminator with KE Penetrator Last Messages --------------- 02568_ Lgt. Ion Engine severed. 02568_ Slammed into A-15 Conveyor. 02569_ Wheel destroyed. 02570_ Slammed into A-15 Conveyor. 02572_ Slammed into C-57 Dissector. 02573_ Slammed into K-01 Serf. 02574_ Cleaned Repair Station. 02579_ Connecting with Repair Station... 02579_ ALERT: Suspicious activity at Repair Station A003. Dispatching Investigation squad. 02579_ Released control of K-01 Serf. 02581_ K-01 Serf reactivates. 02582_ K-01 Serf cleans the Repair Station. 02583_ W-44 Eye sends out distress signal. 02583_ Took control of R-10 Processor. 02583_ Extracted analysis data for R-10 Processor. 02583_ Slug penetrates Wall. 02583_ Penetrated by Slug. 02583_ Com. Wheel destroyed. 02584_ Penetrated by Slug. Map ----- +----------------------------------------------------+ | ??????????????? | | % ??????????????? | | ###### ########+### ##########?????????????????? | | ?????# #????? # # #?????????????????? | | ?????# #??? # # #?????????????????? | | ?????# #?# # # " #?????????????????? | | ?????# #?# # # """ #?????????????????? | | ?????# #?# # # G #?????????????????? | | ?????# #?# # + """ #?????????????????? | | ????? ?# ## # " #?????????????????? | | ????? ?# "" ## #g g #?????????????????? | | ????? ?# "" ## # g #?????????????????? | | ????? ## """" ## ##g#########???????????????? | | ?????###### "??" ## # #???????????????? | | ??????????# ???" ## / #??????